fUST/lending_fUST_20240619
["ID","MTS","AMOUNT","RATE_DAILY","PERIOD"]
[329900984,1718808642688,-500.0,0.00019178,2]
[329900985,1718808642698,-746.68809414,0.00019178,2]
[329900986,1718808642711,-746.68809414,0.00019178,2]
[329900987,1718808642724,-746.68809414,0.00019178,2]
[329900988,1718808642734,-746.68809414,0.00019178,2]
[329900989,1718808642745,-746.68809414,0.00019178,2]
[329900990,1718808642755,-746.68809414,0.00019178,2]
[329900991,1718808642765,-746.68809414,0.00019178,2]
[329900992,1718808642774,-746.68809414,0.00019178,2]
[329900993,1718808642784,-706.86472912,0.00019178,2]
[329900994,1718808642797,-706.86472912,0.00019178,2]
[329900995,1718808642807,-706.86472912,0.00019178,2]
[329900996,1718808642817,-706.86472912,0.00019178,2]
[329900997,1718808642826,-706.86472912,0.00019178,2]
[329900998,1718808642836,-706.86472912,0.00019178,2]
[329900999,1718808642845,-908.82608029,0.00019178,2]
[329901000,1718808642855,-171.582668,0.00019178,2]
[329901002,1718808642865,-300.0,0.0002,2]
[329901003,1718808642874,-167.30657264,0.0002,2]
[329901005,1718808642884,-1199.35567724,0.0002069,2]
[329901007,1718808642894,-750.0,0.00021096,2]
[329901009,1718808642904,-173.111703,0.00021096,2]
[329901010,1718808642913,-166.666666,0.00021918,2]
[329901012,1718808642924,-620.03788428,0.00022194,2]
[329901014,1718808642934,-166.666666,0.00022431,2]
[329901016,1718808642943,-1199.35567724,0.00022623,2]
[329901017,1718808642952,-166.666666,0.00022944,2]
[329901018,1718808642964,-620.00189421,0.00023304,2]
[329901019,1718808642973,-166.666666,0.00023456,2]
[329901020,1718808642983,-857.54170948,0.000239,2]
[329901021,1718808642992,-166.666666,0.00023969,2]
[329901022,1718808643002,-166.666666,0.00024482,2]
[329901023,1718808643011,-87343.89170593,0.00024556,3]
[329901024,1718808643024,-249.993024,0.00024556,3]
[329901025,1718808643035,-1294.11527007,0.00024556,3]
[329901026,1718808643045,-404.21854719,0.00024556,2]
[329901044,1718808643871,-795.13713005,0.00024556,2]
[329901045,1718808643881,-151.0,0.00024556,2]
[329901046,1718808643890,-65.32855288,0.00024654,2]
[329901047,1718808643899,-394.58958624,0.00024654,2]
[329901048,1718808643909,-155.01085076,0.00024654,2]
[329901049,1718808643919,-160.0,0.00024655,2]
[329901050,1718808643928,-69.83374452,0.00024655,2]
[329901051,1718808643941,-85.17865647,0.00024655,2]
[329901052,1718808643950,-489.52678547,0.00024655,2]
[329901053,1718808643961,-1418.92105865,0.00024656,3]
[329901054,1718808643971,-3402.22120675,0.00024656,2]
[329901059,1718808644026,155.0,0.000225,30]
[329901162,1718808646723,-978.51802491,0.00016086,2]
[329901174,1718808646829,-509.23792983,0.00019177,2]
[329901176,1718808646839,-114535.69843336,0.00024656,2]
[329901178,1718808646851,-1028.077323,0.00024656,2]
[329901180,1718808646861,-1028.077323,0.00024656,2]
[329901182,1718808646870,-151.0,0.00024656,2]
[329901184,1718808646879,-151.0,0.00024656,2]
[329901186,1718808646889,-151.0,0.00024656,2]
[329901188,1718808646898,-151.0,0.00024656,2]
[329901190,1718808646908,-210.00959,0.00024656,2]
[329901192,1718808646918,-401.402204,0.00024656,2]
[329901194,1718808646927,-401.402204,0.00024656,2]
[329901196,1718808646936,-151.0,0.00024656,2]
[329901198,1718808646945,-151.0,0.00024656,2]
[329901200,1718808646955,-151.0,0.00024656,2]
[329901201,1718808646966,-151.0,0.00024656,2]
[329901202,1718808646976,-1111.08550842,0.00024657,2]
[329901203,1718808646986,-2288.50815814,0.00024657,2]
[329901204,1718808646996,-154.81422293,0.00024657,2]
[329901205,1718808647005,-156.76753354,0.00024657,2]
[329901206,1718808647015,-151.0,0.00024657,2]
[329901207,1718808647024,-159.412076,0.00024657,2]
[329901208,1718808647034,-500.0,0.00024657,5]
[329901209,1718808647043,-500.0,0.00024657,5]
[329901210,1718808647052,-500.0,0.00024657,5]
[329901211,1718808647061,-500.0,0.00024657,5]
[329901212,1718808647071,-490.13675459,0.00024657,5]
[329901213,1718808647080,-500.0,0.00024657,5]
[329901214,1718808647090,-500.0,0.00024657,5]
[329901215,1718808647099,-500.0,0.00024657,5]
[329901216,1718808647108,-500.0,0.00024657,5]
[329901217,1718808647117,-500.0,0.00024657,5]
[329901218,1718808647127,-500.0,0.00024657,5]
[329901219,1718808647136,-500.0,0.00024657,5]
[329901220,1718808647146,-618.30452941,0.00024657,5]
[329901221,1718808647156,-500.45688317,0.00024657,5]
[329901222,1718808647165,-500.0,0.00024657,5]
[329901223,1718808647175,-500.0,0.00024657,5]
[329901224,1718808647185,-638.84,0.00024657,5]
[329901225,1718808647194,-537.53640815,0.00024657,5]
[329901226,1718808647204,-500.0,0.00024657,5]
[329901227,1718808647215,-502.022016,0.00024657,5]
[329901228,1718808647225,-512.19234643,0.00024657,5]
[329901229,1718808647235,-500.0,0.00024657,5]
[329901230,1718808647245,-500.0,0.00024657,5]
[329901231,1718808647254,-500.0,0.00024657,5]
[329901232,1718808647264,-500.0,0.00024657,5]
[329901233,1718808647274,-500.0,0.00024657,5]
[329901234,1718808647283,-500.0,0.00024657,5]
[329901235,1718808647293,-500.0,0.00024657,5]
[329901236,1718808647302,-500.0,0.00024657,5]
[329901237,1718808647311,-500.0,0.00024657,5]
[329901238,1718808647321,-500.0,0.00024657,5]
[329901239,1718808647330,-459.12033281,0.00024657,5]
[329901240,1718808647339,-500.0,0.00024657,5]
[329901241,1718808647348,-500.0,0.00024657,5]
[329901242,1718808647358,-519.78098807,0.00024657,5]
[329901243,1718808647366,-500.0,0.00024657,5]
[329901244,1718808647375,-500.0,0.00024657,5]
[329901245,1718808647384,-539.36790275,0.00024657,5]
[329901246,1718808647393,-536.61915141,0.00024657,5]
[329901247,1718808647402,-500.94515694,0.00024657,5]
[329901248,1718808647412,-500.0,0.00024657,5]
[329901249,1718808647421,-500.0,0.00024657,5]
[329901250,1718808647431,-254.4095228,0.00024657,5]
[329901251,1718808647440,-536.81118093,0.00024657,5]
[329901252,1718808647449,-230.23136445,0.00024657,5]
[329901253,1718808647459,-500.0,0.00024657,5]
[329901254,1718808647468,-627.74619491,0.00024657,5]
[329901255,1718808647477,-500.0,0.00024657,5]
[329901256,1718808647486,-500.0,0.00024657,5]
[329901257,1718808647496,-263.96179089,0.00024657,5]
[329901258,1718808647505,-500.0,0.00024657,5]
[329901259,1718808647515,-615.35941525,0.00024657,5]
[329901260,1718808647524,-500.0,0.00024657,5]
[329901261,1718808647534,-500.0,0.00024657,5]
[329901262,1718808647544,-500.0,0.00024657,5]
[329901263,1718808647553,-500.0,0.00024657,5]
[329901264,1718808647562,-500.0,0.00024657,5]
[329901265,1718808647571,-500.0,0.00024657,5]
[329901266,1718808647581,-500.0,0.00024657,5]
[329901267,1718808647590,-500.0,0.00024657,5]
[329901268,1718808647599,-500.0,0.00024657,5]
[329901269,1718808647609,-199.96283406,0.00024657,5]
[329901270,1718808647619,-500.0,0.00024657,5]
[329901271,1718808647628,-500.0,0.00024657,5]
[329901272,1718808647638,-500.0,0.00024657,5]
[329901273,1718808647647,-500.0,0.00024657,5]
[329901274,1718808647656,-500.0,0.00024657,5]
[329901275,1718808647665,-500.0,0.00024657,5]
[329901276,1718808647674,-500.0,0.00024657,5]
[329901277,1718808647683,-260.30610989,0.00024657,5]
[329901278,1718808647692,-500.0,0.00024657,5]
[329901279,1718808647702,-503.785688,0.00024657,5]
[329901280,1718808647713,-500.0,0.00024657,5]
[329901281,1718808647724,-490.06442108,0.00024657,5]
[329901282,1718808647734,-500.0,0.00024657,5]
[329901283,1718808647743,-500.0,0.00024657,5]
[329901284,1718808647753,-500.0,0.00024657,5]
[329901285,1718808647762,-500.0,0.00024657,5]
[329901286,1718808647771,-511.85073728,0.00024657,5]
[329901287,1718808647781,-500.0,0.00024657,5]
[329901288,1718808647792,-502.27455615,0.00024657,5]
[329901289,1718808647801,-500.41010876,0.00024657,2]
[329901290,1718808647810,-500.0,0.00024657,5]
[329901291,1718808647820,-534.37,0.00024657,5]
[329901292,1718808647829,-500.0,0.00024657,5]
[329901293,1718808647839,-500.0,0.00024657,5]
[329901294,1718808647850,-1028.077323,0.00024657,2]
[329901295,1718808647860,-1028.077323,0.00024657,2]
[329901296,1718808647869,-500.0,0.00024657,5]
[329901297,1718808647879,-1028.077323,0.00024657,2]
[329901298,1718808647888,-1028.077323,0.00024657,2]
[329901299,1718808647897,-1028.077323,0.00024657,2]
[329901300,1718808647907,-1028.077323,0.00024657,2]
[329901301,1718808647916,-500.0,0.00024657,5]
[329901302,1718808647926,-1028.077323,0.00024657,2]
[329901303,1718808647936,-500.0,0.00024657,5]
[329901304,1718808647945,-1028.077323,0.00024657,2]
[329901305,1718808647955,-1028.077323,0.00024657,2]
[329901306,1718808647966,-1028.077323,0.00024657,2]
[329901307,1718808647975,-1028.077323,0.00024657,2]
[329901308,1718808647984,-502.28606211,0.00024657,5]
[329901309,1718808647994,-1028.077323,0.00024657,2]
[329901310,1718808648003,-500.0,0.00024657,5]
[329901311,1718808648012,-1028.077323,0.00024657,2]
[329901312,1718808648022,-1028.077323,0.00024657,2]
[329901313,1718808648032,-500.0,0.00024657,5]
[329901314,1718808648042,-500.0,0.00024657,5]
[329901315,1718808648051,-500.0,0.00024657,5]
[329901316,1718808648060,-500.0,0.00024657,5]
[329901317,1718808648070,-500.0,0.00024657,5]
[329901318,1718808648080,-555.82373234,0.00024657,5]
[329901319,1718808648090,-500.0,0.00024657,5]
[329901320,1718808648100,-500.0,0.00024657,5]
[329901321,1718808648110,-500.0,0.00024657,5]
[329901322,1718808648120,-216.55299256,0.00024657,5]
[329901323,1718808648131,-365.61980019,0.00024657,5]
[329901324,1718808648140,-500.0,0.00024657,5]
[329901325,1718808648150,-500.0,0.00024657,5]
[329901326,1718808648159,-500.0,0.00024657,5]
[329901327,1718808648169,-510.13386643,0.00024657,5]
[329901328,1718808648179,-500.0,0.00024657,5]
[329901329,1718808648188,-500.0,0.00024657,5]
[329901330,1718808648198,-500.0,0.00024657,5]
[329901331,1718808648207,-500.0,0.00024657,5]
[329901332,1718808648216,-505.38805228,0.00024657,5]
[329901333,1718808648226,-500.0,0.00024657,5]
[329901334,1718808648235,-500.0,0.00024657,5]
[329901335,1718808648245,-500.0,0.00024657,5]
[329901336,1718808648255,-500.0,0.00024657,5]
[329901337,1718808648265,-500.0,0.00024657,5]
[329901338,1718808648275,-500.0,0.00024657,5]
[329901339,1718808648284,-500.0,0.00024657,5]
[329901340,1718808648293,-500.0,0.00024657,5]
[329901341,1718808648303,-500.0,0.00024657,5]
[329901342,1718808648313,-500.0,0.00024657,5]
[329901343,1718808648322,-500.0,0.00024657,5]
[329901344,1718808648332,-500.0,0.00024657,5]
[329901345,1718808648342,-500.0,0.00024657,5]
[329901346,1718808648351,-500.0,0.00024657,5]
[329901347,1718808648361,-500.0,0.00024657,5]
[329901348,1718808648370,-500.0,0.00024657,5]
[329901349,1718808648379,-500.0,0.00024657,5]
[329901350,1718808648389,-500.0,0.00024657,5]
[329901351,1718808648398,-500.0,0.00024657,5]
[329901352,1718808648407,-500.0,0.00024657,5]
[329901353,1718808648417,-500.0,0.00024657,5]
[329901354,1718808648426,-500.0,0.00024657,5]
[329901355,1718808648435,-457.63990531,0.00024657,5]
[329901356,1718808648445,-500.0,0.00024657,5]
[329901357,1718808648454,-293.50579916,0.00024657,5]
[329901358,1718808648466,-500.0,0.00024657,5]
[329901359,1718808648475,-500.0,0.00024657,5]
[329901360,1718808648485,-500.0,0.00024657,5]
[329901361,1718808648495,-508.49979026,0.00024657,5]
[329901362,1718808648504,-500.0,0.00024657,5]
[329901363,1718808648515,-507.76757853,0.00024657,5]
[329901364,1718808648524,-502.32467302,0.00024657,5]
[329901365,1718808648533,-520.42206899,0.00024657,5]
[329901366,1718808648543,-500.0,0.00024657,5]
[329901367,1718808648552,-604.80974932,0.00024657,5]
[329901368,1718808648562,-520.83,0.00024657,5]
[329901369,1718808648571,-509.74139649,0.00024657,5]
[329901370,1718808648580,-500.0,0.00024657,5]
[329901371,1718808648590,-504.71014263,0.00024657,5]
[329901372,1718808648599,-500.0,0.00024657,5]
[329901373,1718808648609,-500.0,0.00024657,5]
[329901374,1718808648618,-500.0,0.00024657,5]
[329901375,1718808648628,-500.0,0.00024657,5]
[329901376,1718808648637,-500.0,0.00024657,5]
[329901377,1718808648647,-500.0,0.00024657,5]
[329901378,1718808648656,-500.0,0.00024657,5]
[329901379,1718808648666,-156.95593048,0.00024657,5]
[329901380,1718808648675,-500.0,0.00024657,5]
[329901381,1718808648685,-500.0,0.00024657,5]
[329901382,1718808648694,-500.0,0.00024657,5]
[329901383,1718808648704,-151.0,0.00024657,2]
[329901384,1718808648718,-151.0,0.00024657,2]
[329901385,1718808648727,-151.0,0.00024657,2]
[329901386,1718808648736,-151.0,0.00024657,2]
[329901387,1718808648746,-151.0,0.00024657,2]
[329901388,1718808648757,-319.40025142,0.00024657,5]
[329901389,1718808648766,-507.35229843,0.00024657,5]
[329901390,1718808648775,-503.89489779,0.00024657,5]
[329901391,1718808648785,-500.0,0.00024657,5]
[329901392,1718808648878,-500.0,0.00024657,5]
[329901393,1718808648889,-501.82755419,0.00024657,5]
[329901394,1718808648899,-500.0,0.00024657,5]
[329901395,1718808648908,-500.0,0.00024657,5]
[329901396,1718808648918,-500.0,0.00024657,5]
[329901397,1718808648927,-500.0,0.00024657,5]
[329901398,1718808648937,-500.0,0.00024657,5]
[329901399,1718808648947,-500.0,0.00024657,5]
[329901400,1718808648956,-500.0,0.00024657,5]
[329901401,1718808648967,-500.0,0.00024657,5]
[329901402,1718808648976,-500.0,0.00024657,5]
[329901403,1718808648986,-500.0,0.00024657,5]
[329901404,1718808648995,-500.0,0.00024657,5]
[329901405,1718808649005,-500.0,0.00024657,5]
[329901406,1718808649014,-535.41323633,0.00024657,5]
[329901407,1718808649024,-500.0,0.00024657,5]
[329901408,1718808649034,-500.0,0.00024657,5]
[329901409,1718808649044,-500.0,0.00024657,5]
[329901410,1718808649054,-500.0,0.00024657,5]
[329901411,1718808649064,-505.3823132,0.00024657,5]
[329901412,1718808649074,-500.0,0.00024657,5]
[329901413,1718808649083,-500.0,0.00024657,5]
[329901414,1718808649093,-500.0,0.00024657,5]
[329901415,1718808649102,-271.86634984,0.00024657,5]
[329901416,1718808649112,-500.0,0.00024657,5]
[329901417,1718808649121,-500.0,0.00024657,5]
[329901418,1718808649132,-729.37,0.00024657,5]
[329901419,1718808649143,-500.0,0.00024657,5]
[329901420,1718808649153,-500.0,0.00024657,5]
[329901421,1718808649163,-500.37175536,0.00024657,5]
[329901422,1718808649173,-500.0,0.00024657,5]
[329901423,1718808649183,-500.0,0.00024657,5]
[329901424,1718808649193,-151.36174626,0.00024657,5]
[329901425,1718808649203,-500.0,0.00024657,5]
[329901426,1718808649216,-500.0,0.00024657,5]
[329901427,1718808649226,-503.586612,0.00024657,5]
[329901428,1718808649235,-812.37,0.00024657,5]
[329901429,1718808649245,-500.0,0.00024657,5]
[329901430,1718808649254,-500.0,0.00024657,5]
[329901431,1718808649263,-508.83164947,0.00024657,5]
[329901432,1718808649273,-500.0,0.00024657,5]
[329901433,1718808649283,-563.9077613,0.00024657,5]
[329901434,1718808649298,-500.0,0.00024657,5]
[329901435,1718808649308,-500.0,0.00024657,5]
[329901436,1718808649318,-959.28,0.00024657,5]
[329901437,1718808649328,-500.0,0.00024657,5]
[329901438,1718808649338,-500.0,0.00024657,5]
[329901439,1718808649347,-729.94,0.00024657,5]
[329901440,1718808649357,-500.0,0.00024657,5]
[329901441,1718808649367,-500.0,0.00024657,5]
[329901442,1718808649376,-752.72,0.00024657,5]
[329901443,1718808649386,-500.0,0.00024657,5]
[329901444,1718808649396,-500.0,0.00024657,5]
[329901445,1718808649405,-500.0,0.00024657,5]
[329901446,1718808649415,-500.0,0.00024657,5]
[329901447,1718808649425,-500.0,0.00024657,5]
[329901448,1718808649435,-500.0,0.00024657,5]
[329901449,1718808649444,-500.0,0.00024657,5]
[329901450,1718808649454,-500.0,0.00024657,5]
[329901451,1718808649467,-500.0,0.00024657,5]
[329901452,1718808649477,-500.0,0.00024657,5]
[329901453,1718808649487,-500.0,0.00024657,5]
[329901454,1718808649497,-500.0,0.00024657,5]
[329901455,1718808649507,-500.0,0.00024657,5]
[329901456,1718808649517,-500.0,0.00024657,5]
[329901457,1718808649527,-501.90984678,0.00024657,5]
[329901458,1718808649537,-547.46473699,0.00024657,5]
[329901459,1718808649546,-500.0,0.00024657,5]
[329901460,1718808649556,-315.99417289,0.00024657,5]
[329901461,1718808649566,-500.0,0.00024657,5]
[329901462,1718808649576,-518.37076744,0.00024657,5]
[329901463,1718808649585,-500.0,0.00024657,5]
[329901464,1718808649595,-500.0,0.00024657,5]
[329901465,1718808649604,-500.0,0.00024657,5]
[329901466,1718808649614,-500.0,0.00024657,5]
[329901467,1718808649624,-500.0,0.00024657,5]
[329901468,1718808649634,-500.0,0.00024657,5]
[329901469,1718808649643,-540.91071539,0.00024657,5]
[329901470,1718808649653,-500.0,0.00024657,5]
[329901471,1718808649663,-151.0,0.00024657,2]
[329901472,1718808649673,-185.668212,0.00024657,2]
[329901473,1718808649682,-500.0,0.00024657,5]
[329901474,1718808649692,-500.0,0.00024657,5]
[329901475,1718808649702,-500.0,0.00024657,5]
[329901476,1718808649717,-499.35128063,0.00024657,5]
[329901477,1718808649727,-500.0,0.00024657,5]
[329901478,1718808649736,-151.0,0.00024657,2]
[329901479,1718808649746,-151.0,0.00024657,2]
[329901480,1718808649758,-151.0,0.00024657,2]
[329901481,1718808649769,-151.0,0.00024657,2]
[329901482,1718808649778,-151.0,0.00024657,2]
[329901483,1718808649788,-504.40230485,0.00024657,5]
[329901484,1718808649801,-151.0,0.00024657,2]
[329901485,1718808649811,-151.0,0.00024657,2]
[329901486,1718808649820,-500.0,0.00024657,5]
[329901487,1718808649830,-500.0,0.00024657,5]
[329901488,1718808649839,-500.0,0.00024657,5]
[329901489,1718808649851,-500.0,0.00024657,5]
[329901490,1718808649861,-500.0,0.00024657,2]
[329901491,1718808649871,-500.0,0.00024657,5]
[329901492,1718808649880,-7346.63,0.00024657,5]
[329901493,1718808649890,-500.0,0.00024657,5]
[329901494,1718808649900,-500.0,0.00024657,5]
[329901495,1718808649910,-2197.0,0.00024657,5]
[329901496,1718808649920,-500.0,0.00024657,5]
[329901497,1718808649929,-500.0,0.00024657,5]
[329901498,1718808649939,-401.402204,0.00024657,2]
[329901499,1718808649948,-401.402204,0.00024657,2]
[329901500,1718808649958,-401.402204,0.00024657,2]
[329901501,1718808649970,-500.0,0.00024657,5]
[329901502,1718808649982,-401.402204,0.00024657,2]
[329901503,1718808649992,-401.402204,0.00024657,2]
[329901504,1718808650003,-401.402204,0.00024657,2]
[329901505,1718808650012,-2865.21,0.00024657,5]
[329901506,1718808650024,-401.402204,0.00024657,2]
[329901507,1718808650034,-401.402204,0.00024657,2]
[329901508,1718808650044,-500.0,0.00024657,5]
[329901509,1718808650053,-401.402204,0.00024657,2]
[329901510,1718808650063,-401.402204,0.00024657,2]
[329901511,1718808650072,-500.0,0.00024657,5]
[329901512,1718808650082,-500.0,0.00024657,5]
[329901513,1718808650092,-401.402204,0.00024657,2]
[329901514,1718808650102,-401.402204,0.00024657,2]
[329901515,1718808650112,-151.0,0.00024657,2]
[329901516,1718808650122,-401.402204,0.00024657,2]
[329901517,1718808650132,-151.0,0.00024657,2]
[329901518,1718808650142,-401.402204,0.00024657,2]
[329901519,1718808650152,-500.0,0.00024657,5]
[329901520,1718808650162,-542.91353036,0.00024657,5]
[329901521,1718808650173,-151.0,0.00024657,2]
[329901522,1718808650183,-151.0,0.00024657,2]
[329901523,1718808650192,-500.0,0.00024657,5]
[329901524,1718808650203,-503.75050684,0.00024657,5]
[329901525,1718808650219,-500.0,0.00024657,5]
[329901526,1718808650230,-500.0,0.00024657,5]
[329901527,1718808650241,-500.0,0.00024657,5]
[329901528,1718808650251,-2545.06,0.00024657,5]
[329901529,1718808650265,-500.0,0.00024657,5]
[329901530,1718808650275,-500.0,0.00024657,5]
[329901531,1718808650285,-500.0,0.00024657,5]
[329901532,1718808650295,-1519.01,0.00024657,5]
[329901533,1718808650305,-500.0,0.00024657,5]
[329901534,1718808650315,-500.0,0.00024657,5]
[329901535,1718808650324,-500.0,0.00024657,5]
[329901536,1718808650334,-500.0,0.00024657,5]
[329901537,1718808650344,-500.0,0.00024657,5]
[329901538,1718808650353,-500.0,0.00024657,5]
[329901539,1718808650363,-7530.94,0.00024657,5]
[329901540,1718808650373,-500.0,0.00024657,5]
[329901541,1718808650382,-509.92144521,0.00024657,5]
[329901542,1718808650392,-500.0,0.00024657,5]
[329901543,1718808650401,-500.0,0.00024657,5]
[329901544,1718808650410,-500.0,0.00024657,5]
[329901545,1718808650420,-500.0,0.00024657,5]
[329901546,1718808650429,-883.92,0.00024657,5]
[329901547,1718808650439,-883.92,0.00024657,5]
[329901548,1718808650449,-883.92,0.00024657,5]
[329901549,1718808650464,-883.92,0.00024657,5]
[329901550,1718808650474,-312.27347099,0.00024657,5]
[329901551,1718808650484,-883.92,0.00024657,5]
[329901552,1718808650494,-883.92,0.00024657,5]
[329901553,1718808650503,-883.92,0.00024657,5]
[329901554,1718808650512,-500.0,0.00024657,5]
[329901555,1718808650522,-883.92,0.00024657,5]
[329901556,1718808650531,-883.92,0.00024657,5]
[329901557,1718808650541,-500.0,0.00024657,5]
[329901558,1718808650550,-500.0,0.00024657,5]
[329901559,1718808650560,-500.0,0.00024657,5]
[329901560,1718808650569,-500.0,0.00024657,5]
[329901561,1718808650579,-512.0412351,0.00024657,5]
[329901562,1718808650589,-151.0,0.00024657,2]
[329901563,1718808650598,-567.21,0.00024657,5]
[329901564,1718808650608,-151.0,0.00024657,2]
[329901565,1718808650617,-240.570855,0.00024657,2]
[329901566,1718808650627,-561.73179575,0.00024657,5]
[329901567,1718808650636,-307.04427863,0.00024657,5]
[329901568,1718808650645,-500.0,0.00024657,5]
[329901569,1718808650655,-500.0,0.00024657,5]
[329901570,1718808650665,-475.49753392,0.00024657,5]
[329901571,1718808650675,-500.0,0.00024657,5]
[329901572,1718808650684,-500.0,0.00024657,5]
[329901573,1718808650693,-500.0,0.00024657,5]
[329901574,1718808650703,-550.28,0.00024657,5]
[329901575,1718808650719,-500.0,0.00024657,5]
[329901576,1718808650728,-500.0,0.00024657,5]
[329901577,1718808650738,-500.0,0.00024657,2]
[329901578,1718808650747,-500.0,0.00024657,5]
[329901579,1718808650758,-500.0,0.00024657,5]
[329901580,1718808650767,-9018.11,0.00024657,5]
[329901581,1718808650854,-505.30875796,0.00024657,5]
[329901582,1718808650865,-500.0,0.00024657,5]
[329901583,1718808650875,-500.0,0.00024657,5]
[329901584,1718808650886,-500.0,0.00024657,5]
[329901585,1718808650895,-500.0,0.00024657,5]
[329901586,1718808650905,-3657.83,0.00024657,5]
[329901587,1718808650914,-500.0,0.00024657,5]
[329901588,1718808650925,-500.0,0.00024657,5]
[329901589,1718808650934,-500.0,0.00024657,5]
[329901590,1718808650944,-500.0,0.00024657,5]
[329901591,1718808650955,-500.0,0.00024657,5]
[329901592,1718808650968,-500.0,0.00024657,5]
[329901593,1718808650978,-500.0,0.00024657,5]
[329901594,1718808650987,-500.0,0.00024657,5]
[329901595,1718808650996,-500.0,0.00024657,5]
[329901596,1718808651007,-2113.34,0.00024657,5]
[329901597,1718808651016,-505.40633585,0.00024657,5]
[329901598,1718808651026,-798.61,0.00024657,5]
[329901599,1718808651035,-500.0,0.00024657,5]
[329901600,1718808651045,-500.0,0.00024657,5]
[329901601,1718808651054,-500.0,0.00024657,5]
[329901602,1718808651065,-500.0,0.00024657,5]
[329901603,1718808651074,-500.0,0.00024657,5]
[329901604,1718808651085,-500.0,0.00024657,5]
[329901605,1718808651094,-500.0,0.00024657,5]
[329901606,1718808651103,-500.0,0.00024657,5]
[329901607,1718808651113,-500.0,0.00024657,5]
[329901608,1718808651123,-500.0,0.00024657,5]
[329901609,1718808651133,-500.0,0.00024657,5]
[329901610,1718808651142,-500.0,0.00024657,5]
[329901611,1718808651152,-500.0,0.00024657,5]
[329901612,1718808651161,-500.0,0.00024657,5]
[329901613,1718808651171,-500.0,0.00024657,5]
[329901614,1718808651181,-1019.0,0.00024657,5]
[329901615,1718808651190,-500.0,0.00024657,5]
[329901616,1718808651200,-500.0,0.00024657,5]
[329901617,1718808651213,-500.0,0.00024657,5]
[329901618,1718808651223,-500.0,0.00024657,5]
[329901619,1718808651233,-2730.49,0.00024657,5]
[329901620,1718808651242,-500.0,0.00024657,5]
[329901621,1718808651252,-500.0,0.00024657,5]
[329901622,1718808651261,-500.0,0.00024657,5]
[329901623,1718808651270,-500.0,0.00024657,5]
[329901624,1718808651279,-500.0,0.00024657,5]
[329901625,1718808651288,-500.0,0.00024657,5]
[329901626,1718808651298,-500.0,0.00024657,5]
[329901627,1718808651307,-500.0,0.00024657,5]
[329901628,1718808651317,-877.43,0.00024657,5]
[329901629,1718808651326,-503.08769284,0.00024657,5]
[329901630,1718808651335,-506.84656698,0.00024657,5]
[329901631,1718808651344,-500.0,0.00024657,5]
[329901632,1718808651353,-500.0,0.00024657,5]
[329901633,1718808651362,-500.0,0.00024657,5]
[329901634,1718808651371,-500.0,0.00024657,5]
[329901635,1718808651380,-500.0,0.00024657,5]
[329901636,1718808651389,-500.0,0.00024657,5]
[329901637,1718808651398,-500.0,0.00024657,5]